bitfinex/quotes_ETHUSD_20251004
["timestamp","ask_amount","ask_price","bid_price","bid_amount"]
[1759540317629,8.90153751,4493.2,4493.1,1e-08]
[1759540317924,11.40753751,4493.2,4493.1,1e-08]
[1759540318213,11.85793751,4493.2,4493.1,1e-08]
[1759540318366,9.80353751,4493.2,4493.1,1e-08]
[1759540319206,11.24353751,4493.2,4493.1,1e-08]
[1759540319395,13.31529458,4493.2,4493.1,1e-08]
[1759540320278,11.87529458,4493.2,4493.1,1e-08]
[1759540323066,11.87472661,4493.2,4493.1,1e-08]
[1759540324414,12.609953,4493.2,4493.1,1e-08]
[1759540327536,12.721153,4493.2,4493.1,1e-08]
[1759540328697,12.609953,4493.2,4493.1,1e-08]
[1759540330717,6.69677442,4493.2,4493.1,1e-08]
[1759540330916,9.83837442,4493.2,4493.1,1e-08]
[1759540331545,14.666353,4493.2,4493.1,1e-08]
[1759540331709,14.666353,4493.2,4493.1,0.00100001]
[1759540333368,14.215953,4493.2,4493.1,0.00100001]
[1759540333525,14.666353,4493.2,4493.1,0.00100001]
[1759540338733,14.777553,4493.2,4493.1,0.00100001]
[1759540341333,15.36965824,4493.2,4493.1,0.00100001]
[1759540343377,14.777553,4493.2,4493.1,0.00100001]
[1759540344454,15.57160438,4493.2,4493.1,0.00100001]
[1759540345076,15.66069808,4493.2,4493.1,0.00100001]
[1759540345273,14.8666467,4493.2,4493.1,0.00100001]
[1759540346441,16.05772377,4493.2,4493.1,0.00100001]
[1759540347365,14.8666467,4493.2,4493.1,0.00100001]
[1759540348152,14.8666467,4493.2,4489.1,0.97625344]
[1759540348153,2.22613031,4492.1,4489.1,0.97625344]
[1759540348379,2.22756838,4489.2,4489.1,0.97625344]
[1759540348611,5.27226132,4489.2,4489.1,0.97625344]
[1759540348913,0.6336,4488.8,4488.1,0.00032]
[1759540349069,0.79604792,4488.3,4488.1,0.00032]
[1759540349375,0.47633075,4488.5,4488.1,0.00032]
[1759540349576,0.4609722,4489.2,4488.1,0.00032]
[1759540349789,0.59543103,4489.1,4488.1,0.00032]
[1759540350107,0.01109294,4489.2,4488.1,0.00032]
[1759540350302,7.23820562,4490.3,4488.1,0.00032]
[1759540350303,0.01109294,4489.5,4488.1,2.7534585]
[1759540350508,0.01109294,4489.5,4488.1,2.53060114]
[1759540350875,2.41109294,4489.8,4488.1,2.53060114]
[1759540351099,4.62741325,4489.6,4488.2,0.25306011]
[1759540351300,0.01109294,4489.5,4488.3,0.02228015]
[1759540351596,2.23851307,4489.5,4488.4,0.4609]
[1759540351805,2.23851307,4489.5,4489.2,0.001]
[1759540352048,2.23851307,4489.5,4489.3,0.4609]
[1759540352304,0.01109294,4489.5,4489.3,0.4609]
[1759540352504,2.22746914,4489.4,4489.3,0.4609]
[1759540353005,2.23850963,4489.6,4489.3,0.4609]
[1759540353178,0.01109294,4489.6,4489.3,0.4609]
[1759540353388,2.22741721,4489.6,4489.3,0.4609]
[1759540353568,0.01109294,4489.5,4489.2,0.001]
[1759540353768,2.22751876,4489.3,4489.2,0.001]
[1759540354315,2.22751876,4489.3,4489.2,0.4619]
[1759540358093,2.33871876,4489.3,4489.2,0.4619]
[1759540359313,0.1112,4489.3,4489.2,0.4619]
[1759540362273,0.01109294,4490.0,4489.2,0.4619]
[1759540362513,0.1112,4489.5,4489.3,2.53127518]
[1759540362673,0.1112,4489.5,4489.4,0.4609]
[1759540368021,0.1112,4489.5,4489.3,2.509]
[1759540368217,0.1112,4489.5,4489.4,0.4609]
[1759540368930,0.01,4490.9,4489.4,0.78026469]
[1759540369130,0.01,4490.9,4489.5,0.4609]
[1759540369293,2.23672809,4490.9,4489.5,0.4609]
[1759540369695,0.01,4490.9,4489.5,0.4609]
[1759540370036,0.01,4490.9,4489.6,0.29359887]
[1759540370542,0.01,4490.9,4489.7,0.4444]
[1759540370895,0.01,4490.9,4489.7,2.67171345]
[1759540371328,0.01,4490.9,4489.8,0.4666727]
[1759540371897,0.01,4490.9,4490.1,2.22711685]
[1759540372106,0.01,4490.9,4490.2,2.75398241]
[1759540372539,0.01,4490.9,4490.3,0.4444]
[1759540378452,0.01,4490.9,4490.4,2.24920256]
[1759540378654,0.01,4490.9,4490.4,0.02226973]
[1759540378853,0.01,4490.9,4490.8,0.1112]
[1759540379127,0.01,4490.9,4490.8,5.31264247]
[1759540379346,0.01,4490.9,4490.8,5.29037473]
[1759540381730,0.01,4490.9,4490.8,0.1112]
[1759540381978,0.01,4490.9,4490.8,2.6192]
[1759540382392,0.01,4490.9,4490.8,3.0636]
[1759540383069,0.01,4490.9,4490.8,2.6192]
[1759540385490,0.01,4490.9,4490.8,2.88112]
[1759540387197,0.01,4490.9,4490.8,2.6192]
[1759540387885,0.01,4490.9,4490.8,3.0636]
[1759540388494,0.012,4490.9,4490.8,3.0636]
[1759540392033,0.012,4490.9,4490.8,2.6192]
[1759540392160,0.012,4490.9,4490.8,5.29037473]
[1759540392360,0.012,4490.9,4490.8,3.0636]
[1759540392611,0.012,4490.9,4490.8,5.29037473]
[1759540395796,0.012,4490.9,4490.8,15.29537873]
[1759540396100,0.012,4490.9,4490.8,5.29037473]
[1759540396599,0.012,4490.9,4490.8,8.00690473]
[1759540397706,0.012,4490.9,4490.8,10.40690473]
[1759540397910,0.012,4490.9,4490.8,13.93696373]
[1759540398274,0.012,4490.9,4490.8,11.36932073]
[1759540398884,0.012,4490.9,4490.8,11.78953773]
[1759540400881,0.012,4490.9,4490.8,15.14663073]
[1759540401284,0.012,4490.9,4490.8,13.70663073]
[1759540401632,0.012,4490.9,4490.8,12.08135973]
[1759540401799,0.012,4490.9,4490.8,13.52135973]
[1759540402129,0.012,4490.9,4490.8,14.1120486]
[1759540402326,0.012,4490.9,4490.8,13.52135973]
[1759540402693,0.012,4490.9,4490.8,12.01124573]
[1759540402892,0.012,4490.9,4490.8,11.01202973]
[1759540403337,0.012,4490.9,4490.8,11.46182973]
[1759540403919,0.012,4490.9,4490.8,11.29832873]
[1759540404629,0.012,4490.9,4490.8,9.43275273]
[1759540404807,0.012,4490.9,4490.8,7.24597473]
[1759540405013,0.012,4490.9,4490.8,9.42050673]
[1759540405694,0.012,4490.9,4490.8,9.87030673]
[1759540405937,0.012,4490.9,4490.8,12.66542273]
[1759540406842,0.012,4490.9,4490.8,13.90065973]
[1759540407337,0.012,4490.9,4490.8,12.39054273]
[1759540407548,0.012,4490.9,4490.1,2.224]
[1759540407711,0.012,4490.9,4489.6,2.6738]
[1759540407712,0.4282,4490.8,4489.6,2.6738]
[1759540407915,0.4282,4490.7,4490.1,2.22711806]
[1759540408238,0.4282,4490.7,4490.3,2.4]
[1759540408455,0.4282,4490.7,4490.4,2.507]
[1759540408742,0.4282,4490.6,4490.5,2.507]
[1759540411041,0.4282,4490.6,4490.5,4.7339235]
[1759540411340,0.4402,4490.9,4490.4,2.22696336]
[1759540411547,0.4282,4490.8,4490.5,2.507]
[1759540411917,0.4282,4490.7,4490.5,2.507]
[1759540412122,0.4282,4490.7,4490.5,4.7339141]
[1759540412343,0.4402,4490.9,4490.5,2.507]
[1759540412536,0.4282,4490.8,4490.5,4.7338847]
[1759540412736,0.4282,4490.8,4490.5,5.01260878]
[1759540413253,0.4282,4490.8,4490.6,0.02226873]
[1759540413460,0.4282,4490.8,4490.7,2.507]
[1759540417573,0.4282,4490.8,4490.7,2.6182]
[1759540419046,0.4282,4490.8,4490.7,0.1112]
[1759540419255,0.4282,4490.8,4490.7,2.6182]
[1759540419448,0.4282,4490.8,4490.7,0.1112]
[1759540419674,0.4282,4490.8,4490.7,2.6182]
[1759540423769,0.4282,4490.8,4490.7,2.507]
[1759540427063,0.4302,4490.8,4490.7,2.507]
[1759540430501,0.002,4490.8,4490.7,2.507]
[1759540431190,0.4447,4490.8,4490.7,2.507]
[1759540432906,0.45579294,4490.8,4489.2,0.001]
[1759540433114,2.22693136,4490.5,4489.3,2.256]
[1759540433296,0.91648608,4490.4,4489.3,2.256]
[1759540433484,0.01109294,4490.4,4489.3,2.73]
[1759540433809,0.002,4490.8,4489.8,2.22722504]
[1759540434009,0.002,4490.8,4489.9,4.75648192]
[1759540434214,0.002,4490.8,4490.0,2.507]
[1759540434411,0.4447,4490.8,4490.1,0.02227121]
[1759540434778,0.002,4490.8,4490.1,0.02227121]
[1759540434978,0.002,4490.8,4490.0,2.507]
[1759540434979,0.002,4490.8,4490.7,2.22682432]
[1759540435178,0.002,4490.8,4490.7,4.73382432]
[1759540435421,0.002,4490.8,4490.7,5.20782432]
[1759540435622,0.002,4490.8,4490.7,9.00173532]
[1759540435787,0.002,4490.8,4490.7,11.40173532]
[1759540435987,0.002,4490.8,4490.7,11.74172419]
[1759540437513,0.002,4490.8,4490.7,7.94781319]
[1759540440225,0.002,4490.8,4490.7,3.21398887]
[1759540440386,0.002,4490.8,4490.7,7.47381319]
[1759540440587,0.002,4490.8,4490.7,0.33998887]
[1759540440794,0.002,4490.8,4490.7,2.507]
[1759540440991,0.002,4490.8,4490.7,4.73382432]
[1759540441207,0.002,4490.8,4490.7,5.20782432]
[1759540441586,0.002,4490.8,4490.7,4.73382432]
[1759540442339,0.002,4490.8,4490.7,2.507]
[1759540442889,0.002,4490.8,4490.7,2.6182]
[1759540443300,0.002,4490.8,4490.7,4.84502432]
[1759540443930,0.002,4490.8,4490.7,2.6182]
[1759540445919,0.4447,4490.8,4489.6,2.22732062]
[1759540446119,0.002,4490.8,4490.5,0.1112]
[1759540446321,0.002,4490.8,4490.6,2.507]
[1759540446322,0.4427,4490.7,4490.6,2.507]
[1759540446893,0.4427,4490.7,4490.5,0.1112]
[1759540447201,0.4427,4490.7,4490.6,2.507]
[1759540447621,0.4427,4490.7,4489.5,2.22740761]
[1759540447821,0.5539,4490.7,4490.1,0.1112]
[1759540448028,0.5539,4490.7,4490.2,2.507]
[1759540448331,0.4427,4490.6,4490.2,2.507]
[1759540448498,0.1112,4490.7,4490.2,2.507]
[1759540448697,0.4427,4490.5,4490.2,2.507]
[1759540448997,0.4427,4490.4,4490.2,2.507]
[1759540452528,0.1112,4490.7,4490.2,2.507]
[1759540452732,0.4427,4490.6,4490.2,2.507]
[1759540453245,0.1112,4490.7,4490.2,2.507]
[1759540453572,0.4427,4490.6,4490.2,2.507]
[1759540453745,0.4427,4490.5,4490.2,2.507]
[1759540453907,0.4427,4490.4,4490.2,2.507]
[1759540454239,0.4427,4490.3,4489.4,0.2699]
[1759540454444,0.4427,4490.3,4489.9,0.1112]
[1759540454748,2.23800531,4490.6,4490.0,2.507]
[1759540455049,0.67782053,4490.5,4490.0,2.507]
[1759540455207,0.23512053,4490.5,4490.0,2.507]
[1759540455407,0.4427,4490.4,4490.0,2.507]
[1759540455637,0.4427,4490.3,4490.0,2.507]
[1759540455839,0.23512053,4490.5,4490.0,2.507]
[1759540456029,0.4427,4490.2,4490.0,2.507]
[1759540456345,0.4427,4490.1,4490.0,2.507]
[1759540456905,2.33806308,4490.7,4490.0,2.507]
[1759540457101,2.91588642,4490.6,4490.0,2.507]
[1759540457365,0.4427,4490.5,4490.0,2.507]
[1759540457562,2.47318642,4490.6,4490.0,2.507]
[1759540457741,2.66962371,4490.5,4490.0,2.507]
[1759540457941,2.47318077,4490.6,4490.0,2.507]
[1759540458144,0.4427,4490.4,4490.0,2.507]
[1759540458471,0.56499294,4490.7,4490.0,2.507]
[1759540458892,0.1112,4490.7,4490.1,0.02227121]
[1759540459228,0.1112,4490.7,4490.2,0.474]
[1759540459564,0.1112,4490.7,4490.3,0.02227022]
[1759540459730,0.1112,4490.7,4490.0,4.73416489]
[1759540459936,0.002,4490.8,4490.3,0.1112]
[1759540460138,0.002,4490.8,4490.4,0.02226973]
[1759540460342,0.4709,4490.7,4489.2,0.001]
[1759540460541,0.4709,4490.7,4490.1,0.1112]
[1759540460754,0.28339385,4490.6,4490.2,2.508]
[1759540460959,0.4709,4490.5,4490.2,2.508]
[1759540461133,0.4709,4490.4,4490.2,2.508]
[1759540461936,0.4709,4490.3,4490.2,2.508]
[1759540463938,2.2398679,4490.8,4490.2,2.508]
[1759540464131,0.4709,4490.7,4490.2,2.508]
[1759540464381,0.4709,4490.6,4490.2,2.508]
[1759540464886,0.4709,4490.5,4490.2,2.508]
[1759540465094,0.4709,4490.4,4490.2,2.508]
[1759540465253,0.4709,4490.3,4490.2,2.508]
[1759540466952,0.01309294,4490.8,4490.2,2.508]
[1759540469397,0.4417,4490.7,4490.2,2.508]
[1759540469562,0.4417,4490.6,4490.2,2.508]
[1759540469997,0.4417,4490.5,4490.2,2.508]
[1759540470200,0.01309294,4490.8,4490.3,2.508]
[1759540470201,0.4417,4490.4,4490.3,2.508]
[1759540471467,0.45479294,4490.8,4490.3,2.508]
[1759540471667,0.4417,4490.7,4490.3,2.508]
[1759540471869,2.66858326,4490.6,4490.3,2.508]
[1759540473404,0.4417,4490.6,4490.3,2.508]
[1759540474104,2.2268878,4490.6,4490.3,2.508]
[1759540474294,0.4417,4490.5,4490.3,2.508]
[1759540474498,2.22697309,4490.4,4490.3,2.508]
[1759540474911,0.4417,4490.5,4490.3,2.508]
[1759540474912,2.66862961,4490.5,4490.3,2.508]
[1759540475121,0.4417,4490.4,4490.3,2.508]
[1759540476778,2.22692961,4490.5,4490.3,2.508]
[1759540476997,2.66862961,4490.5,4490.3,2.508]
[1759540477332,2.22697309,4490.4,4490.3,2.508]
[1759540477543,2.77987309,4490.4,4490.3,2.508]
[1759540477825,0.1112,4490.4,4490.3,2.508]
[1759540478608,0.1112,4490.4,4490.3,2.9576]
[1759540478813,0.1112,4490.7,4490.3,2.9576]
[1759540479129,0.1112,4490.7,4490.4,0.02226973]
[1759540479423,0.1112,4490.7,4490.4,0.47186973]
[1759540479981,0.1112,4490.7,4490.4,0.02226973]
[1759540481283,0.002,4490.8,4490.5,0.4496]
[1759540481482,0.002,4490.8,4490.6,0.02226873]
[1759540482515,0.002,4490.8,4490.6,0.47186873]
[1759540483214,0.002,4490.8,4490.6,0.02226873]
[1759540483416,0.002,4490.8,4490.3,2.9576]
[1759540483417,0.002,4490.8,4490.4,0.02226973]
[1759540484830,0.002,4490.8,4490.4,0.47186973]
[1759540485424,0.002,4490.8,4490.5,0.4496]
[1759540485620,0.002,4490.8,4490.6,0.4314557]
[1759540485989,0.002,4490.8,4490.7,0.4496]
[1759540486390,0.002,4490.8,4490.7,2.9576]
[1759540486812,0.002,4490.8,4490.7,2.508]
[1759540487016,0.002,4490.8,4490.7,2.9576]
[1759540488622,0.002,4490.8,4490.7,3.2503019]
[1759540488961,0.002,4490.8,4490.7,3.3615019]
[1759540489469,0.002,4490.8,4490.7,3.38377014]
[1759540489782,0.002,4490.8,4490.7,3.3615019]
[1759540490060,0.002,4490.8,4490.7,3.38377014]
[1759540494847,0.002,4490.8,4490.7,5.58832622]
[1759540495050,0.002,4490.8,4490.7,3.3615019]
[1759540495357,0.002,4490.8,4490.7,3.38377014]
[1759540496444,0.002,4490.8,4490.7,5.61059446]
[1759540496644,0.002,4490.8,4490.7,5.58832622]
[1759540500281,0.002,4490.8,4490.7,0.4039019]
[1759540500484,0.4732,4490.8,4490.7,2.6182]
[1759540500658,0.4732,4490.8,4490.7,0.1112]
[1759540500981,0.4732,4490.8,4490.7,2.6182]
[1759540501169,0.002,4490.8,4490.7,2.6182]
[1759540501569,0.002,4490.8,4490.7,2.64046824]
[1759540501743,0.002,4490.8,4490.7,5.62457938]
[1759540501948,0.002,4490.8,4490.7,5.60231114]
[1759540502803,0.002,4490.8,4490.7,8.00231114]
[1759540506696,0.4732,4490.8,4490.7,0.1112]
[1759540507000,0.4732,4490.8,4490.7,2.6192]
[1759540508804,0.4732,4490.8,4490.7,0.1112]
[1759540508963,0.4732,4490.8,4490.7,2.508]
[1759540509701,0.4732,4490.8,4490.5,0.1112]
[1759540509899,0.4732,4490.8,4490.6,2.508]
[1759540510102,0.4712,4490.7,4490.6,2.508]
[1759540510270,0.4712,4490.7,4490.5,0.1112]
[1759540510472,0.002,4490.8,4490.6,2.508]
[1759540512820,0.002,4490.8,4490.7,0.02226824]
[1759540513610,0.002,4490.8,4490.6,2.508]
[1759540513928,0.002,4490.8,4490.5,0.1112]
[1759540514128,0.4712,4490.7,4490.6,2.508]
[1759540514497,0.4712,4490.7,4490.6,2.509]
[1759540515029,0.74238928,4490.7,4489.2,4.62856711]
[1759540515211,0.4712,4490.6,4489.4,2.4]
[1759540515423,0.4712,4490.6,4489.4,4.62746744]
[1759540515729,0.4712,4490.5,4489.4,2.4]
[1759540515915,0.4712,4490.4,4489.4,4.62745839]
[1759540516089,0.4712,4490.4,4489.4,2.4]
[1759540517030,0.4712,4490.4,4489.4,4.62744948]
[1759540517397,0.4712,4490.3,4489.4,4.62744948]
[1759540517845,0.4712,4490.3,4489.4,2.4]
[1759540518051,0.4712,4490.2,4489.4,2.4]
[1759540518615,0.4712,4490.1,4489.4,2.4]
[1759540519221,0.002,4490.8,4489.5,0.02227419]
[1759540519545,0.4712,4490.5,4489.5,0.47067419]
[1759540519745,0.4712,4490.5,4489.4,4.62745828]
[1759540519912,0.4712,4490.4,4489.4,2.4]
[1759540520114,0.4676,4490.3,4489.4,2.4]
[1759540520328,2.22691699,4490.6,4489.4,2.4]
[1759540520523,0.4676,4490.2,4489.4,2.4]
[1759540520864,0.4676,4490.2,4489.5,2.22740501]
[1759540521017,0.4676,4490.2,4489.4,2.8696]
[1759540521322,0.4676,4490.2,4489.2,0.001]
[1759540521751,2.6946762,4490.2,4489.3,2.508]
[1759540521914,0.4676,4490.1,4489.3,2.508]
[1759540522115,0.4676,4490.0,4489.3,2.508]
[1759540523065,0.26946762,4490.2,4489.2,0.001]
[1759540523227,0.4676,4489.9,4489.3,2.509]
[1759540524258,0.1112,4490.2,4489.6,0.1112]
[1759540525437,0.5788,4490.2,4489.6,0.1112]
[1759540535989,0.5808,4490.2,4489.6,0.1112]
[1759540540799,0.5808,4490.2,4489.7,0.0222732]
[1759540541696,0.4615,4490.1,4489.7,0.0222732]
[1759540542217,0.4615,4490.0,4489.7,0.0222732]
[1759540544894,0.4615,4489.9,4489.6,0.1112]
[1759540547947,0.1132,4490.2,4489.7,2.509]
[1759540548123,0.4615,4489.8,4489.7,2.509]
[1759540548633,0.1132,4490.2,4489.7,2.509]
[1759540548809,0.4615,4490.1,4489.7,2.509]
[1759540549005,0.4615,4490.0,4489.7,2.509]
[1759540549211,0.4615,4489.9,4489.7,2.509]
[1759540549830,0.1132,4490.2,4489.7,2.509]
[1759540550046,0.4615,4490.1,4489.7,2.509]
[1759540550447,0.4494,4490.0,4489.7,2.509]
[1759540550647,0.4494,4489.9,4489.7,2.509]
[1759540552413,0.1132,4490.2,4489.7,2.509]
[1759540552639,0.4494,4490.1,4489.7,2.509]
[1759540552840,0.4494,4490.0,4489.7,2.509]
[1759540553044,0.4494,4490.0,4489.6,0.1112]
[1759540553045,0.4494,4489.9,4489.6,0.1112]
[1759540553250,0.4494,4489.9,4489.8,2.509]
[1759540554048,0.5626,4490.2,4489.8,2.509]
[1759540554347,0.4494,4490.1,4489.8,2.509]
[1759540554648,0.4494,4490.0,4489.8,2.509]
[1759540554854,0.002,4489.9,4489.8,2.509]
[1759540559373,0.4514,4489.9,4489.8,2.509]
[1759540560166,0.4514,4489.9,4489.6,0.1112]
[1759540560381,0.4514,4489.9,4489.2,0.001]
[1759540560382,2.68777345,4489.8,4489.7,2.508]
[1759540560579,2.22737162,4489.6,4489.2,0.001]
[1759540560723,2.22737162,4489.6,4489.3,2.508]
[1759540560920,0.4494,4489.5,4489.3,2.508]
[1759540561137,2.67681953,4489.5,4489.4,2.508]
[1759540561662,2.22751876,4489.3,4489.2,0.001]
[1759540561823,2.22751876,4489.3,4489.2,1.907]
[1759540562023,2.67691876,4489.3,4489.2,1.907]
[1759540562360,0.4494,4489.3,4489.2,1.907]
[1759540563862,0.4494,4489.3,4489.2,2.509]
[1759540564752,1.11789462,4489.3,4489.2,0.001]
[1759540565062,1.11789462,4489.3,4489.2,2.509]
[1759540565428,1.11789462,4489.3,4489.2,0.001]
[1759540565429,3.69217632,4489.3,4489.2,0.001]
[1759540565945,3.69217632,4489.3,4489.2,2.509]
[1759540566756,3.69217632,4489.3,4489.2,0.001]
[1759540567076,3.69217632,4489.3,4489.2,2.509]
[1759540568568,3.69217632,4489.3,4489.2,2.51]
[1759540573850,3.24277632,4489.3,4489.2,2.51]
[1759540574063,3.69217632,4489.3,4489.2,2.51]
[1759540574794,3.69217632,4489.3,4489.2,0.001]
[1759540580371,3.24277632,4489.3,4489.2,0.001]
[1759540580699,1.01525756,4489.3,4489.2,0.001]
[1759540580899,0.66849462,4489.3,4489.2,0.4293]
[1759540582038,0.66849462,4489.3,4489.2,0.001]
[1759540588918,0.1112,4489.4,4489.2,0.001]
[1759540589139,0.01109294,4489.3,4489.2,0.4592]
[1759540589442,0.01109294,4489.3,4489.2,0.001]
[1759540590149,3.35661973,4489.3,4489.2,0.001]
[1759540590352,3.92614555,4489.3,4489.2,2.51]
[1759540590744,3.92614555,4489.3,4489.2,0.001]
[1759540590745,4.55974555,4489.3,4489.2,0.001]
[1759540591082,4.55974555,4489.3,4489.2,2.51]
[1759540591083,4.54865261,4489.3,4489.2,2.51]
[1759540594243,4.54865261,4489.3,4489.2,0.001]
[1759540594444,4.54865261,4489.3,4489.2,2.51]
[1759540596271,4.54865261,4489.3,4489.2,0.001]
[1759540600344,4.54865261,4489.3,4489.2,0.001]
[1759540602375,1.87163385,4489.3,4489.2,0.001]
[1759540602582,3.54071973,4489.3,4489.2,0.001]
[1759540602981,3.99021973,4489.3,4489.2,0.001]
[1759540603893,3.54071973,4489.3,4489.2,0.001]
[1759540605644,0.67960097,4489.3,4489.2,0.001]
[1759540605810,0.01109294,4489.3,4489.2,0.001]
[1759540606408,2.6881117,4489.3,4489.2,0.001]
[1759540606697,2.57447606,4489.3,4489.2,2.51]
[1759540606928,3.23197458,4489.3,4489.2,2.51]
[1759540609917,1.00445582,4489.3,4489.2,2.51]
[1759540610136,2.89811022,4489.3,4489.2,2.51]
[1759540610803,0.67059146,4489.3,4489.2,2.51]
[1759540610991,0.002,4489.3,4489.2,2.9748]
[1759540621028,0.002,4489.3,4489.2,2.51]
[1759540622434,0.002,4489.3,4489.2,0.001]
[1759540622435,2.2406117,4489.3,4489.2,0.001]
[1759540622734,2.6866117,4489.3,4489.2,2.51]
[1759540623336,3.18933933,4489.3,4489.2,0.001]
[1759540623534,3.18933933,4489.3,4489.2,2.51]
[1759540623729,3.17824639,4489.3,4489.2,2.51]
[1759540624757,3.84683636,4489.3,4489.2,2.51]
[1759540625569,3.40083636,4489.3,4489.2,2.51]
[1759540626452,3.84683636,4489.3,4489.2,2.51]
[1759540626861,3.40083636,4489.3,4489.2,2.51]
[1759540627367,3.84683636,4489.3,4489.2,2.51]
[1759540627755,3.40083636,4489.3,4489.2,2.51]
[1759540628950,3.84683636,4489.3,4489.2,2.51]
[1759540630943,3.40083636,4489.3,4489.2,2.51]
[1759540631182,3.84683636,4489.3,4489.2,2.51]
[1759540633960,3.40083636,4489.3,4489.2,2.51]
[1759540634347,3.84683636,4489.3,4489.2,2.51]
[1759540635169,0.67058997,4489.3,4489.2,2.51]
[1759540635484,0.002,4489.3,4489.2,2.51]
[1759540636357,0.002,4489.3,4489.2,2.9748]
[1759540638312,0.002,4489.3,4489.2,2.51]
[1759540638621,2.22951876,4489.3,4489.2,2.51]
[1759540641011,2.68301876,4489.3,4489.2,2.51]
[1759540641213,3.03312194,4489.3,4489.2,0.001]
[1759540641509,3.03312194,4489.3,4489.2,0.903]
[1759540641726,3.95465387,4489.3,4489.2,0.903]
[1759540641932,3.47642194,4489.3,4489.2,0.903]
[1759540645306,3.13412194,4489.3,4489.2,0.903]
[1759540645510,2.78401876,4489.3,4489.2,0.903]
[1759540653503,0.5565,4489.3,4489.2,0.903]
[1759540653704,0.1132,4489.3,4489.2,0.903]
[1759540653938,2.34071876,4489.3,4489.2,1.3463]
[1759540654205,2.34071876,4489.3,4489.2,0.903]
[1759540654827,0.1132,4489.3,4489.2,0.903]
[1759540655310,2.34071876,4489.3,4489.2,0.903]
[1759540656226,0.1132,4489.3,4489.2,0.903]
[1759540658692,2.34071876,4489.3,4489.2,0.903]
[1759540670896,0.1132,4489.3,4489.2,1.335]
[1759540671395,0.1132,4489.3,4489.2,0.903]
[1759540677560,0.1132,4489.3,4489.2,1.335]
[1759540677959,0.1132,4489.3,4489.2,0.903]
[1759540679769,0.1132,4489.3,4489.2,1.335]
[1759540680264,0.1132,4489.3,4489.2,0.903]
[1759540680464,0.5761,4489.3,4489.2,0.903]
[1759540680670,0.58719294,4489.3,4489.2,0.903]
[1759540680888,0.5761,4489.3,4489.2,0.903]
[1759540681075,0.5761,4489.3,4489.2,0.001]
[1759540681276,0.58719294,4489.3,4489.2,2.509]
[1759540681475,0.5761,4489.3,4489.2,2.509]
[1759540681677,0.5761,4489.3,4489.2,0.001]
[1759540681678,3.08528585,4489.3,4489.2,0.001]
[1759540681867,3.56390655,4489.3,4489.2,0.001]
[1759540682071,3.57499949,4489.3,4489.2,0.001]
[1759540684892,4.24354029,4489.3,4489.2,0.001]
[1759540693026,4.87714029,4489.3,4489.2,0.001]
[1759540693178,4.86604735,4489.3,4489.2,0.001]
[1759540698670,7.26604735,4489.3,4489.2,0.001]
[1759540704354,6.80314735,4489.3,4489.2,0.001]
[1759540708360,4.40314735,4489.3,4489.2,0.001]
[1759540717681,4.87724735,4489.3,4489.2,0.001]
[1759540721945,4.40314735,4489.3,4489.2,0.001]
[1759540722117,4.87724735,4489.3,4489.2,0.001]
[1759540723647,4.39862665,4489.3,4489.2,0.001]
[1759540723854,4.87756264,4489.3,4489.2,0.001]
[1759540724577,5.47623263,4489.3,4489.2,0.001]
[1759540726182,4.87756264,4489.3,4489.2,0.001]
[1759540726543,5.47623263,4489.3,4489.2,0.001]
[1759540727181,5.00213263,4489.3,4489.2,0.001]
[1759540727355,5.47623263,4489.3,4489.2,0.001]
[1759540727675,4.87756264,4489.3,4489.2,0.001]
[1759540729346,5.47623263,4489.3,4489.2,0.001]
[1759540729693,4.87756264,4489.3,4489.2,0.001]
[1759540729888,5.47623263,4489.3,4489.2,0.001]
[1759540730090,4.87756264,4489.3,4489.2,0.001]
[1759540731263,5.47623263,4489.3,4489.2,0.001]
[1759540731660,4.12179555,4489.3,4489.2,0.001]
[1759540731903,0.6705408,4489.3,4489.2,0.4499]
[1759540732158,0.002,4489.3,4489.2,0.4499]
[1759540737293,0.002,4489.3,4489.2,2.9579]
[1759540737494,0.002,4489.3,4489.2,3.25369]
[1759540742378,0.002,4489.3,4489.2,3.27596568]
[1759540742870,0.002,4489.3,4489.2,3.25369]
[1759540744770,0.002,4489.3,4489.2,0.29679]
[1759540745003,2.2406117,4489.3,4489.2,0.001]
[1759540745290,2.77735405,4489.3,4489.2,2.509]
[1759540746472,2.32975405,4489.3,4489.2,2.509]
[1759540746660,2.77735405,4489.3,4489.2,2.509]
[1759540747992,0.10223529,4489.3,4489.2,2.509]
[1759540748312,0.10223529,4489.3,4489.2,0.001]
[1759540748313,0.09114235,4489.3,4489.2,0.001]
[1759540748499,2.31866111,4489.3,4489.2,2.509]
[1759540748688,2.76626111,4489.3,4489.2,2.509]
[1759540749065,0.09114235,4489.3,4489.2,2.509]
[1759540752801,0.09114235,4489.3,4489.2,2.80479]
[1759540753002,0.002,4489.3,4489.2,3.25369]
[1759540755258,0.002,4489.3,4489.2,2.80479]
[1759540755472,0.002,4489.3,4489.2,3.36489]
[1759540755757,0.002,4489.3,4489.2,3.45603235]
[1759540755916,0.002,4489.3,4489.2,5.68360073]
[1759540756702,0.002,4489.3,4489.2,8.08360073]